bitfinex-derivatives/quotes_ETHF0:USTF0_20250410
["timestamp","ask_amount","ask_price","bid_price","bid_amount"]
[1744290358399,4.52594,1591.2,1591.1,18.0956564]
[1744290358603,4.52594,1591.2,1591.1,19.3533764]
[1744290359693,3.0934,1591.3,1591.2,1.25764]
[1744290359898,4.52575,1591.5,1591.4,1.25748]
[1744290360100,7.77105,1591.5,1591.4,1.25748]
[1744290360398,6.5136,1591.5,1591.2,6.57598278]
[1744290360593,1.25756,1591.3,1591.2,4.66709278]
[1744290360795,1.25756,1591.3,1591.2,3.40948278]
[1744290361295,4.50286,1591.3,1591.2,3.40948278]
[1744290361502,1.2578,1591.0,1590.9,17.97659278]
[1744290361701,1.2578,1591.0,1590.9,10.34448278]
[1744290361902,1.25795,1590.8,1590.7,3.40948278]
[1744290362094,6.3164,1591.1,1590.8,1.25795]
[1744290362300,6.1182806,1591.4,1591.3,1.25756]
[1744290362600,1.25756,1591.3,1591.2,4.66707278]
[1744290362802,1.25756,1591.3,1591.2,4.66712278]
[1744290363393,3.0013,1591.3,1591.2,7.87492278]
[1744290363599,6.1182306,1591.4,1591.3,1.25756]
[1744290363600,4.8607006,1591.4,1591.3,1.25756]
[1744290363810,4.8607006,1591.4,1591.3,4.26676]
[1744290364001,4.8607006,1591.4,1591.3,12.67624278]
[1744290364197,1.25756,1591.3,1591.2,4.47477176]
[1744290364399,1.25756,1591.3,1591.2,0.00941176]
[1744290364595,6.25756,1591.3,1591.2,0.00941176]
[1744290365096,1.25787,1590.9,1590.8,3.40948278]
[1744290365298,1.25798,1590.8,1590.7,1.25797]
[1744290365512,3.1443,1591.1,1590.8,1.25795]
[1744290365513,1.25795,1590.9,1590.8,1.25795]
[1744290365699,1.25803,1590.7,1590.6,3.40948278]
[1744290366409,1.25803,1590.7,1590.6,4.66759278]
[1744290366805,4.24448176,1590.8,1590.7,1.25803]
[1744290367007,1.25803,1590.7,1590.6,7.87533278]
[1744290367206,4.23513,1590.7,1590.6,7.87533278]
[1744290367609,2.9771,1590.7,1590.6,7.87533278]
[1744290367913,4.23513,1590.7,1590.6,3.40948278]
[1744290368314,7.32503,1590.7,1590.6,3.40948278]
[1744290368698,6.067,1590.7,1590.6,4.66759278]
[1744290368898,6.067,1590.7,1590.6,3.40948278]
[1744290368899,7.32503,1590.7,1590.6,3.40948278]
[1744290369412,1.25827,1590.4,1590.3,3.2078]
[1744290370604,1.25835,1590.3,1590.2,14.68617362]
[1744290370814,4.45185,1590.3,1590.2,14.68617362]
[1744290371006,3.1935,1590.3,1590.2,15.94460362]
[1744290371206,3.2155,1590.5,1590.4,1.25827]
[1744290371404,3.2155,1590.5,1590.3,4.46613]
[1744290371608,1.25835,1590.3,1590.2,14.68617362]
[1744290371808,3.2155,1590.5,1590.1,13.51528278]
[1744290372110,4.36903,1590.2,1590.1,13.51528278]
[1744290373104,4.36903,1590.2,1590.1,14.77379278]
[1744290373613,3.1106,1590.2,1590.1,14.77379278]
[1744290373815,4.36903,1590.2,1590.1,14.77379278]
[1744290374112,4.36903,1590.2,1590.1,13.51528278]
[1744290374799,4.36903,1590.2,1590.1,14.77379278]
[1744290375004,4.36903,1590.2,1590.1,13.51528278]
[1744290375504,4.36903,1590.2,1590.1,6.61728278]
[1744290375700,1.25867,1589.9,1589.8,14.68617362]
[1744290376310,4.48217,1589.9,1589.8,14.68617362]
[1744290376511,7.46757,1589.9,1589.8,14.68617362]
[1744290377307,12.46757,1589.9,1589.8,14.68617362]
[1744290378611,48.26757,1589.9,1589.8,14.68617362]
[1744290379009,1.2589,1589.6,1589.5,4.46671]
[1744290379318,1.2589,1589.6,1589.5,3.1168]
[1744290379517,1.2589,1589.6,1589.5,4.37578]
[1744290379719,1.25898,1589.5,1589.4,3.40948278]
[1744290379909,1.25922,1589.2,1589.1,3.40948278]
[1744290380111,3.1165,1589.4,1589.3,1.25914]
[1744290380419,1.25922,1589.2,1589.1,3.40948278]
[1744290380612,0.00941176,1589.7,1589.2,3.14806]
[1744290380914,0.00941176,1589.7,1589.6,1.2589]
[1744290381308,0.00941176,1589.7,1589.6,4.4381]
[1744290381509,1.26823176,1589.7,1589.6,4.4381]
[1744290381711,0.00941176,1589.7,1589.6,4.4381]
[1744290381915,1.26823176,1589.7,1589.6,3.1792]
[1744290382217,1.26823176,1589.7,1589.6,4.4381]
[1744290382418,0.00941176,1589.7,1589.6,4.4381]
[1744290382606,1.26823176,1589.7,1589.6,4.4381]
[1744290383220,1.26823176,1589.7,1589.6,3.1792]
[1744290383421,1.26823176,1589.7,1589.6,4.4381]
[1744290383610,0.00941176,1589.7,1589.5,1.25897]
[1744290383921,0.00941176,1589.7,1589.6,1.2589]
[1744290384413,1.26823176,1589.7,1589.6,1.2589]
[1744290384616,3.07921176,1589.7,1589.6,1.2589]
[1744290384820,4.33803176,1589.7,1589.6,1.2589]
[1744290385415,0.00941176,1589.7,1589.6,4.374]
[1744290385618,0.00941176,1589.7,1589.6,9.374]
[1744290385817,0.00941176,1589.7,1589.6,15.4431]
[1744290386223,0.00941176,1589.7,1589.6,18.85258278]
[1744290387312,0.00941176,1589.7,1589.6,13.85258278]
[1744290387621,0.00941176,1589.7,1589.6,18.85258278]
[1744290391228,1.76e-06,1589.7,1589.6,18.85258278]
[1744290392326,1.76e-06,1589.7,1589.6,13.85258278]
[1744290392827,1.25882176,1589.7,1589.6,7.78348278]
[1744290393129,1.25882176,1589.7,1589.6,3.40948278]
[1744290394428,9.97224976,1589.7,1589.6,3.40948278]
[1744290394730,9.97224976,1589.7,1589.5,1e-05]
[1744290394731,1.2589,1589.6,1589.5,1e-05]
[1744290394918,4.358,1589.6,1589.5,1e-05]
[1744290395123,9.358,1589.6,1589.5,1e-05]
[1744290395630,1.25922,1589.2,1589.1,3.40948278]
[1744290395829,1.25946,1588.9,1588.8,10.27748278]
[1744290396326,1.25946,1588.9,1588.8,3.40948278]
[1744290396734,4.35856,1588.9,1588.8,3.40948278]
[1744290396936,1.2597,1588.6,1588.5,13.48528278]
[1744290397121,1.2597,1588.6,1588.5,11.53725278]
[1744290397321,6.0351,1589.1,1588.8,1.25947]
[1744290397635,43.9491,1589.0,1588.7,3.2078]
[1744290397820,43.9491,1589.0,1588.5,13.48528278]
[1744290398020,1.25946,1588.9,1588.8,1.25947]
[1744290398327,4.40856,1588.9,1588.8,4.30747]
[1744290398728,40.8,1589.0,1588.9,1.25946]
[1744290398922,42.05938,1589.0,1588.9,4.66894278]
[1744290399133,42.05938,1589.0,1588.9,3.40948278]
[1744290399535,47.05938,1589.0,1588.9,3.40948278]
[1744290400229,53.41628,1589.0,1588.9,3.40948278]
[1744290402430,53.41628,1589.0,1588.5,4.4675]
[1744290402431,1.2597,1588.6,1588.5,6.61728278]
[1744290402632,1.25985,1588.4,1588.3,3.40948278]
[1744290402839,1.26009,1588.1,1588.0,4.66964278]
[1744290403035,3.1264,1588.3,1588.2,1.26001]
[1744290403234,7.30992,1588.5,1588.4,1.25985]
[1744290403435,10.43632,1588.5,1588.4,1.25985]
[1744290403838,4.38622,1588.5,1588.4,1.25985]
[1744290404038,1.25985,1588.4,1588.3,4.46027]
[1744290404338,4.38624,1588.5,1588.4,1.25985]
[1744290404638,4.38619,1588.5,1588.4,1.25985]
[1744290404936,3.1264,1588.5,1588.4,1.25985]
[1744290405140,0.00944167,1588.6,1588.3,3.2004]
[1744290405337,1.25985,1588.4,1588.3,4.46029]
[1744290406447,3.1272,1588.5,1588.4,1.25985]
[1744290406741,0.00944167,1588.6,1588.5,1.25977]
[1744290407137,0.00944167,1588.6,1588.5,4.47527]
[1744290408340,0.00944167,1588.6,1588.5,9.47527]
[1744290408636,2.991e-05,1588.6,1588.5,12.49207]
[1744290409635,2.991e-05,1588.6,1588.5,15.90155278]
[1744290411739,2.991e-05,1588.6,1588.5,7.88475278]
[1744290411944,3.22462991,1588.6,1588.5,4.66925278]
[1744290412142,3.22462991,1588.6,1588.5,7.60175278]
[1744290412340,4.48432991,1588.6,1588.5,4.66925278]
[1744290413334,1.25977,1588.5,1588.4,13.49872445]
[1744290413538,4.45397,1588.5,1588.4,10.29092445]
[1744290413734,2.991e-05,1588.6,1588.5,1.25977]
[1744290414037,2.991e-05,1588.6,1588.5,7.50587]
[1744290415941,1.25972991,1588.6,1588.5,7.50587]
[1744290416149,4.23032991,1588.6,1588.5,3.2078]
[1744290416338,1.25977,1588.5,1588.4,10.29092445]
[1744290416540,7.43477,1588.5,1588.4,10.29092445]
[1744290416841,7.43477,1588.5,1588.4,3.41892445]
[1744290417238,12.43477,1588.5,1588.4,0.00944167]
[1744290417745,7.43477,1588.5,1588.4,0.00944167]
[1744290417946,1.26009,1588.1,1588.0,6.61728278]
[1744290418137,1.26009,1588.1,1588.0,3.40948278]
[1744290418441,1.26025,1587.9,1587.8,3.40948278]
[1744290418845,6.26025,1587.9,1587.8,3.40948278]
[1744290419146,1.26033,1587.8,1587.7,3.2078]
[1744290419333,1.26041,1587.7,1587.6,3.40948278]
[1744290419741,3.0639,1587.7,1587.6,3.40948278]
[1744290419942,3.0639,1587.8,1587.7,1.26041]
[1744290420136,3.0639,1587.8,1587.6,6.61728278]
[1744290420349,1.26041,1587.7,1587.6,3.40948278]
[1744290420548,4.25231,1587.7,1587.6,3.40948278]
[1744290420749,11.14306,1587.7,1587.3,14.68617362]
[1744290420950,1.26063,1587.5,1587.3,15.94684362]
[1744290421145,3.0639,1587.6,1587.5,1.26057]
[1744290421448,0.00944167,1587.7,1587.6,1.26049]
[1744290422549,0.00944167,1587.7,1587.4,6.61728278]
[1744290422846,1.26057,1587.5,1587.4,3.40948278]
[1744290423250,1.26057,1587.5,1587.4,4.67013278]
[1744290423439,3.1426,1587.6,1587.4,4.67013278]
[1744290423738,1.26057,1587.5,1587.4,4.67013278]
[1744290423937,1.26057,1587.5,1587.4,3.40948278]
[1744290424135,1.26065,1587.4,1587.3,6.84]
[1744290424346,1.26073,1587.3,1587.2,3.40948278]
[1744290425447,4.40329,1587.4,1587.2,3.40948278]
[1744290425645,3.1426,1587.4,1587.3,1.26073]
[1744290425846,6.17784167,1587.7,1587.3,3.2078]
[1744290426153,1.26057,1587.5,1587.4,4.2627]
[1744290426353,3.1029,1587.6,1587.5,1.26057]
[1744290426652,3.1029,1587.6,1587.5,4.26267]
[1744290426846,3.18684167,1587.7,1587.6,1.26049]
[1744290427052,3.18684167,1587.7,1587.5,3.40948278]
[1744290427053,1.26049,1587.6,1587.5,3.40948278]
[1744290427251,4.36339,1587.6,1587.5,3.40948278]
[1744290428153,1.26073,1587.3,1587.2,7.64752278]
[1744290428355,1.26072,1587.4,1587.3,1.26072]
[1744290428854,3.0169,1587.5,1587.2,3.40948278]
[1744290428855,1.26073,1587.3,1587.2,3.40948278]
[1744290429647,3.1466,1587.3,1587.2,4.67029278]
[1744290429846,4.27758,1587.4,1587.3,1.26073]
[1744290430144,1.26073,1587.3,1587.2,4.67029278]
[1744290430344,4.27763,1587.3,1587.2,3.40948278]
[1744290430945,4.27763,1587.3,1587.0,4.23825]
[1744290430946,1.26093,1587.1,1586.9,6.61728278]
[1744290431153,4.17636,1587.2,1587.0,1.26089]
[1744290431349,2.9155,1587.1,1587.0,4.46379]
[1744290431552,4.17639,1587.1,1587.0,4.46379]
[1744290431855,2.9155,1587.1,1586.9,6.61728278]
[1744290432051,2.9155,1587.0,1586.9,7.87831278]
[1744290432246,2.9155,1587.0,1586.9,11.08121278]
[1744290432450,1.26097,1587.0,1586.9,9.82018278]
[1744290432849,1.26097,1587.0,1586.9,3.40948278]
[1744290433252,7.29605,1587.1,1587.0,1.26097]
[1744290433448,1.26097,1587.0,1586.9,7.87832278]
[1744290433758,6.35907,1587.6,1587.0,3.15226]
[1744290433955,1.26075,1587.3,1587.2,1.26076]
[1744290434759,1.26990167,1587.7,1587.3,3.15167]
[1744290435055,0.00944167,1587.7,1587.6,4.46829]
[1744290435261,0.00944167,1587.7,1587.6,14.72277278]
[1744290435555,0.00944167,1587.7,1587.6,19.72277278]
[1744290436056,0.00944167,1587.7,1587.6,14.72277278]
[1744290436253,0.00944167,1587.7,1587.6,17.83827278]
[1744290436958,0.00944167,1587.7,1587.6,16.57778278]
[1744290437159,1.26985167,1587.7,1587.6,6.61728278]
[1744290437354,1.26985167,1587.7,1587.6,3.40948278]
[1744290437553,4.22045167,1587.7,1587.6,3.40948278]
[1744290437753,0.00944167,1587.7,1587.6,7.87777278]
[1744290438261,0.00944167,1587.7,1587.6,12.87777278]
[1744290438459,0.00944167,1587.7,1587.6,15.80007278]
[1744290438957,1.67e-06,1587.7,1587.6,15.80007278]
[1744290439658,1.67e-06,1587.7,1587.6,10.80007278]
[1744290440953,1.26041167,1587.7,1587.6,9.53958278]
[1744290441155,1.67e-06,1587.7,1587.6,10.80007278]
[1744290441662,1.67e-06,1587.7,1587.6,15.80007278]
[1744290442049,7.25738661,1588.2,1588.1,1.26009]
[1744290442357,7.25738661,1588.2,1588.1,14.72137278]
[1744290442554,5.59538616,1588.3,1588.2,1.26001]
[1744290442760,5.59538616,1588.3,1588.2,4.29721]
[1744290443057,1.26930167,1588.4,1588.3,1.25991]
[1744290443358,3.16694167,1588.4,1588.3,10.46371]
[1744290443558,0.00944167,1588.4,1588.3,10.46371]
[1744290445151,1.26929167,1588.4,1588.3,10.46371]
[1744290445358,9.42679167,1588.4,1588.3,9.2038]
[1744290445560,4.42679167,1588.4,1588.3,9.2038]
[1744290445760,3.16694167,1588.4,1588.3,10.46373]
[1744290446057,4.42679167,1588.4,1588.3,10.46373]
[1744290446262,0.00944167,1588.4,1588.3,10.46373]
[1744290446759,3.13314167,1588.4,1588.3,10.46373]
[1744290447065,4.39299167,1588.4,1588.3,9.2038]
[1744290447559,0.00944167,1588.4,1588.3,10.46373]
[1744290448270,0.00944167,1588.4,1588.3,15.46373]
[1744290449166,0.00944167,1588.4,1588.3,10.46373]
[1744290449567,0.00944167,1588.4,1588.3,15.46373]
[1744290449769,1.67e-06,1588.4,1588.3,15.46373]
[1744290449968,1.67e-06,1588.4,1588.3,15.9659019]
[1744290453669,4.31029,1589.0,1588.5,3.14944]
[1744290453967,3.0617,1589.2,1589.1,1.2593]
[1744290454268,5.9819,1589.2,1589.1,7.25529833]
[1744290454470,12.24112,1589.2,1589.1,5.99599833]
[1744290455169,12.24112,1589.2,1589.1,7.25529833]
[1744290455170,10.9819,1589.2,1589.1,7.25529833]
[1744290455358,0.00944167,1589.3,1589.2,1.25922]
[1744290455557,0.00944167,1589.3,1589.2,11.16332]
[1744290455962,0.00944167,1589.3,1589.2,17.15931833]
[1744290457063,1.67e-06,1589.3,1589.2,22.15931833]
[1744290457268,12.21445579,1590.0,1589.4,6.29508]
[1744290457572,1.25867,1589.9,1589.8,3.2078]
[1744290457766,12.21445579,1590.2,1589.8,10.0158]
[1744290457968,15.32415579,1590.2,1590.1,1.25851]
[1744290458273,12.21445579,1590.2,1590.1,1.25851]
[1744290458478,12.21445579,1590.2,1590.1,4.22601]
[1744290459185,15.36565579,1590.2,1590.1,4.22601]
[1744290459477,15.36565579,1590.2,1590.1,1.25851]
[1744290460573,16.62408579,1590.2,1590.0,4.47576167]
[1744290460776,21.40445579,1590.2,1590.0,3.21724167]
[1744290460971,1.25851,1590.1,1590.0,0.00944167]
[1744290461174,4.40971,1590.1,1590.0,0.00944167]
[1744290462280,9.40971,1590.1,1590.0,0.00944167]
[1744290462687,11.359,1590.1,1589.7,6.806]
[1744290462977,1.25874,1589.8,1589.7,8.06482]
[1744290463174,3.14647,1590.0,1589.7,8.06482]
[1744290463485,3.1962,1589.9,1589.8,7.25473833]
[1744290463875,9.45487,1589.9,1589.8,5.99599833]
[1744290464079,3.1962,1589.9,1589.8,7.25473833]
[1744290464277,9.45487,1589.9,1589.7,6.81544167]
[1744290464471,4.35634,1589.8,1589.7,8.07426167]
[1744290464776,7.45074,1589.8,1589.7,6.81544167]
[1744290464977,48.25074,1589.8,1589.7,6.81544167]
[1744290465284,46.992,1589.8,1589.7,8.07426167]
[1744290466073,46.992,1589.8,1589.7,14.07026]
[1744290466074,6.192,1589.8,1589.7,14.07026]
[1744290466272,6.192,1589.8,1589.7,17.27486]
[1744290466684,3.0944,1589.8,1589.7,17.27486]
[1744290466883,3.0944,1589.8,1589.7,14.07026]
[1744290467084,40.8,1590.0,1589.9,1.25867]
[1744290467280,3.0944,1590.0,1589.9,1.25867]
[1744290467479,3.0976,1590.1,1590.0,1.25859]
[1744290467776,6.1578,1590.2,1590.1,1.25851]
[1744290467981,6.1578,1590.2,1590.1,8.06351]
[1744290468382,3.0396,1590.2,1590.1,11.19061]
[1744290468882,3.0396,1590.2,1590.1,17.18660833]
[1744290469077,0.00944167,1590.3,1590.2,1.25843]
[1744290469282,0.00944167,1590.3,1590.2,13.58932833]
[1744290469582,1.67e-06,1590.3,1590.2,18.58932833]
[1744290471281,1.67e-06,1590.3,1590.2,19.09073283]
[1744290471676,1.67e-06,1590.3,1590.2,18.58932833]
[1744290472276,1.67e-06,1590.3,1590.2,13.58932833]
[1744290473385,1.67e-06,1590.3,1590.2,18.58932833]
[1744290473874,1.67e-06,1590.3,1590.0,3.64203328]
[1744290473875,1.25851,1590.1,1590.0,3.2078]
[1744290474280,5.0,1590.1,1589.8,12.79899833]
[1744290474480,2.9037,1590.0,1589.9,1.25867]
[1744290474983,4.16229,1590.0,1589.8,14.05768833]
[1744290475479,1.25867,1589.9,1589.8,12.79899833]
[1744290475683,2.9037,1589.9,1589.8,14.05773833]
[1744290478381,2.9037,1589.9,1589.8,7.25473833]
[1744290479177,2.9037,1589.9,1589.8,14.02773833]
[1744290479787,2.9037,1589.9,1589.8,16.95203833]
[1744290480478,6.047,1590.2,1590.1,1.25851]
[1744290480681,10.35379,1590.2,1590.1,1.25851]
[1744290480883,9.0953,1590.2,1590.1,1.25851]
[1744290482094,10.35373,1590.2,1590.1,1.25851]
[1744290482281,9.0953,1590.2,1590.1,1.25851]
[1744290483089,6.181,1590.2,1590.1,1.25851]
[1744290483885,1.67e-06,1590.3,1590.2,1.25843]
[1744290484088,1.67e-06,1590.3,1590.2,17.23522833]
[1744290484395,1.67e-06,1590.3,1590.2,25.44442833]
[1744290485487,1.67e-06,1590.3,1590.2,17.23522833]
[1744290485695,1.25835167,1590.3,1590.2,9.9808]
[1744290485881,1.25835167,1590.3,1590.2,3.2078]
[1744290486081,1.25843,1590.2,1590.1,8.03048]
[1744290486382,4.47183,1590.2,1590.1,8.03048]
[1744290486989,1.25859,1590.0,1589.9,105.12679833]
[1744290487188,1.25859,1590.0,1589.8,14.02667833]
[1744290487387,3.2134,1589.9,1589.8,14.02667833]
[1744290488487,4.47207,1589.9,1589.8,14.02667833]
[1744290488689,4.47207,1589.9,1589.8,12.76799833]
[1744290489095,3.2134,1589.9,1589.8,14.02673833]
[1744290489481,1.25874,1589.8,1589.7,0.00944167]
[1744290489889,4.45794,1589.8,1589.7,0.00944167]
[1744290490190,1.25905,1589.5,1589.3,97.17809]
[1744290490391,1.25905,1589.5,1589.3,103.95009]
[1744290490392,3.1992,1589.4,1589.3,103.95009]
[1744290490591,3.1992,1589.4,1589.3,105.8988]
[1744290490783,48.9992,1589.4,1589.1,6.773]
[1744290490984,1.25922,1589.2,1589.1,6.773]
[1744290491292,1.25922,1589.2,1589.1,8.0323]
[1744290491483,1.25922,1589.2,1589.1,6.773]
[1744290491484,4.45842,1589.2,1589.1,6.773]
[1744290491883,4.45842,1589.2,1589.1,8.0323]
[1744290492293,3.1992,1589.2,1589.1,8.0323]
[1744290493394,3.1992,1589.2,1589.1,11.1152]
[1744290493598,3.1992,1589.2,1589.1,8.0323]
[1744290494082,3.1992,1589.2,1589.1,11.2401]
[1744290494287,3.1992,1589.2,1589.1,14.323]
[1744290494691,3.11354167,1589.3,1589.2,1.25922]
[1744290494886,0.00944167,1589.3,1589.2,10.33811833]
[1744290497993,0.00944167,1589.3,1589.2,17.11211833]
[1744290498188,6.17864167,1589.3,1589.2,14.02921833]
[1744290498592,11.17864167,1589.3,1589.0,0.00944167]
[1744290498791,1.2593,1589.1,1589.0,0.00944167]
[1744290499192,7.2301,1589.1,1589.0,0.00944167]
[1744290499802,12.2301,1589.1,1589.0,0.00944167]
[1744290500487,1.25962,1588.7,1588.6,12.77099833]
[1744290500693,1.25962,1588.7,1588.6,8.0347]
[1744290500999,1.25962,1588.7,1588.6,6.775]
[1744290501203,1.25962,1588.7,1588.6,8.0347]
[1744290501598,4.41532,1588.7,1588.6,8.0347]
[1744290502099,4.41532,1588.7,1588.6,6.775]
[1744290502396,1.2597,1588.6,1588.5,0.00944167]
[1744290502711,4.4154,1588.6,1588.5,0.00944167]
[1744290502894,9.4154,1588.6,1588.5,0.00944167]
[1744290503904,3.1557,1588.6,1588.5,1.26921167]
[1744290504498,3.1557,1588.6,1588.5,4.46621167]
[1744290506105,4.4302,1588.8,1588.7,1.25962]
[1744290506803,1.2597,1588.6,1588.5,0.00944167]
[1744290506997,3.14965,1588.4,1587.9,15.98079833]
[1744290507199,1.26001,1588.2,1588.1,1.26007]
[1744290507601,4.01911,1588.2,1588.1,1.26007]
[1744290507903,1.26009,1588.1,1588.0,3.97481]
[1744290508101,1.26017,1588.0,1587.9,17.24098833]
[1744290508304,4.01925,1588.1,1588.0,1.26017]
[1744290508503,4.01919,1588.1,1588.0,1.26017]
[1744290509196,2.7591,1588.1,1588.0,1.26017]
[1744290509397,4.01919,1588.1,1588.0,1.26017]
[1744290510198,4.01919,1588.1,1587.9,15.98079833]
[1744290510199,4.01919,1588.1,1587.9,17.24097833]
[1744290510407,4.01919,1588.1,1587.9,15.98079833]
[1744290510711,4.01924,1588.1,1588.0,1.26017]
[1744290511211,1.26017,1588.0,1587.9,17.24098833]
[1744290511507,2.9456,1588.0,1587.9,17.24098833]
[1744290512104,46.87904167,1588.3,1588.2,1.26001]
[1744290512311,48.13902167,1588.3,1588.2,1.26001]
[1744290512611,1.26003,1588.2,1588.1,1.26004]
[1744290513110,46.87904167,1588.3,1588.0,1.2601]
[1744290513111,50.02903167,1588.3,1588.0,1.2601]
[1744290513307,2.9805,1588.1,1588.0,1.2601]
[1744290513502,1.26006,1588.2,1588.1,1.26009]
[1744290513706,48.04202167,1588.3,1588.2,1.26001]
[1744290515009,40.80944167,1588.3,1588.2,1.26001]
[1744290515413,40.80944167,1588.3,1588.2,4.18951]
[1744290515815,42.06937167,1588.3,1588.2,4.18951]
[1744290516012,0.00944167,1588.3,1588.2,4.18951]
[1744290519307,0.00944167,1588.3,1588.2,9.18951]
[1744290519804,0.00944167,1588.3,1588.2,4.18951]
[1744290520216,4.20987167,1588.3,1588.2,4.18951]
[1744290520515,4.20987167,1588.3,1588.2,2.9295]
[1744290520815,4.20994167,1588.3,1588.2,1.26001]
[1744290522118,2.94994167,1588.3,1588.1,8.77359833]
[1744290522318,4.20987167,1588.3,1588.2,1.26001]
[1744290522913,2.94994167,1588.3,1588.2,1.26001]
[1744290523718,4.20987167,1588.3,1588.2,1.26001]
[1744290524421,2.94994167,1588.3,1588.2,1.26001]
[1744290524615,2.94994167,1588.3,1588.2,4.24211]
[1744290524811,0.00944167,1588.3,1588.2,9.24211]
[1744290525007,1.67e-06,1588.3,1588.2,15.23810833]
[1744290525414,1.67e-06,1588.3,1588.2,111.26810833]
[1744290525916,1.67e-06,1588.3,1588.2,106.26810833]
[1744290526114,1.67e-06,1588.3,1588.2,111.26810833]
[1744290528120,40.8,1589.0,1588.9,1.25946]
[1744290528307,42.05938,1589.0,1588.9,1.25946]
[1744290528513,1.25946,1588.9,1588.8,12.74599833]
[1744290528718,4.01686,1588.9,1588.8,14.00553833]
[1744290528925,4.01686,1588.9,1588.8,16.74463833]
[1744290529222,4.01686,1588.9,1588.8,12.74599833]
[1744290530520,9.01686,1588.9,1588.8,12.74599833]
[1744290530715,12.22466,1588.9,1588.8,5.99599833]
[1744290531517,9.01686,1588.9,1588.8,5.99599833]
[1744290531722,1.2597,1588.7,1588.6,1.25966]
[1744290532124,1.2597,1588.7,1588.5,9.7025]
[1744290532125,4.25704,1588.8,1588.7,1.25962]
[1744290532323,2.9975,1588.8,1588.7,1.25962]
[1744290533925,1.25965,1588.7,1588.6,1.25962]
[1744290534120,6.14652,1588.8,1588.4,10.20828833]
[1744290534322,1.25975,1588.6,1588.5,1.25977]
[1744290534525,8.8146,1588.7,1588.6,1.2597]
[1744290534720,1.25962,1588.7,1588.6,6.75]
[1744290535031,4.17902,1588.7,1588.6,6.75]
[1744290535219,6.06851,1588.7,1588.3,7.25586833]
[1744290535418,1.25985,1588.4,1588.3,5.99599833]
[1744290535717,1.25993,1588.3,1588.2,6.75]
[1744290535920,1.25993,1588.3,1588.1,0.00944167]
[1744290535921,1.26001,1588.2,1588.1,0.00944167]
[1744290536226,1.26041,1587.7,1587.6,15.74371798]
[1744290536419,1.26041,1587.7,1587.6,11.00820965]
[1744290536621,42.06041,1587.7,1587.6,9.74771965]
[1744290537331,44.97981,1587.7,1587.6,9.74771965]
[1744290537519,44.97981,1587.7,1587.6,11.00820965]
[1744290537718,44.97981,1587.7,1587.6,9.74771965]
[1744290538320,44.97981,1587.7,1587.6,11.00820965]
[1744290538520,44.97981,1587.7,1587.6,9.74771965]
[1744290539332,44.97981,1587.7,1587.6,11.00820965]
[1744290539533,43.7194,1587.7,1587.6,11.00820965]
[1744290539826,40.8,1587.7,1587.6,11.00820965]
[1744290541520,40.8,1587.7,1587.6,1.26049]
[1744290541715,40.8,1587.7,1587.6,7.25648833]
[1744290542624,0.00944167,1587.8,1587.7,1.26041]
[1744290542824,0.00944167,1587.8,1587.7,7.22531]
[1744290543030,40.80944167,1587.8,1587.7,7.22531]
[1744290543228,42.06977167,1587.8,1587.7,4.01751]
[1744290543429,44.80147167,1587.8,1587.7,4.01751]
[1744290543629,44.80147167,1587.8,1587.7,7.22531]
[1744290543932,40.80944167,1587.8,1587.7,7.22531]
[1744290544531,42.06977167,1587.8,1587.7,7.22531]
[1744290544726,44.82267167,1587.8,1587.7,2.7571]
[1744290544927,44.82267167,1587.8,1587.7,4.01751]
[1744290545326,44.82267167,1587.8,1587.7,2.7571]
[1744290545522,1.26041,1587.7,1587.6,5.99599833]
[1744290545728,9.70131,1587.7,1587.6,5.99599833]
[1744290545929,9.70131,1587.7,1587.3,4.17752]
[1744290545930,1.26065,1587.4,1587.3,5.99599833]
[1744290546525,1.26065,1587.4,1587.3,7.25672833]
[1744290546727,1.26065,1587.4,1587.3,5.99599833]
[1744290547230,1.26089,1587.1,1587.0,13.97691833]
[1744290547627,1.26087,1587.2,1587.1,1.26087]
[1744290547823,3.96887,1587.2,1587.1,1.26087]
[1744290548333,3.96881,1587.2,1587.1,1.26087]
[1744290549438,2.708,1587.2,1587.1,1.26087]
[1744290549736,3.96881,1587.2,1587.1,1.26087]
[1744290550127,3.96881,1587.2,1587.0,12.71599833]
[1744290550128,1.26089,1587.1,1587.0,13.97688833]
[1744290550328,3.94359,1587.1,1587.0,13.97688833]
[1744290550535,2.6827,1587.1,1587.0,13.97688833]
[1744290550738,2.6827,1587.2,1587.0,12.71599833]
[1744290550928,1.26089,1587.1,1587.0,13.97696833]
[1744290551436,1.26089,1587.1,1587.0,12.71599833]
[1744290551938,1.26089,1587.1,1586.7,10.13217833]
[1744290551939,1.26112,1586.8,1586.7,10.13217833]
[1744290552124,1.26112,1586.8,1586.7,5.99599833]
[1744290552330,1.26112,1586.8,1586.7,7.25719833]
[1744290552730,3.98752,1586.8,1586.7,7.25719833]
[1744290553238,3.98752,1586.8,1586.7,5.99599833]
[1744290553444,3.98752,1586.8,1586.7,7.25719833]
[1744290554427,0.00944167,1586.9,1586.8,1.26112]
[1744290554627,0.00944167,1586.9,1586.8,4.10142]
[1744290555137,3.99688167,1586.9,1586.8,7.98412]
[1744290555436,3.99688167,1586.9,1586.8,10.82442]
[1744290555737,0.00944167,1586.9,1586.8,10.82442]
[1744290556127,0.00944167,1586.9,1586.8,21.82041833]
[1744290556628,0.00944167,1586.9,1586.8,24.78551833]
[1744290557529,1.67e-06,1586.9,1586.8,24.78551833]
[1744290557831,4.8316562,1587.3,1586.8,24.78551833]
[1744290557832,4.8316562,1587.3,1587.2,1.26081]
[1744290558026,4.8316562,1587.3,1587.2,17.18760833]
[1744290558229,4.8316562,1587.3,1587.2,22.18760833]
[1744290558425,4.8316562,1587.3,1587.2,28.07700833]
[1744290559433,4.8316562,1587.3,1587.2,23.07700833]
[1744290559840,4.8316562,1587.3,1587.2,16.89560833]
[1744290560339,4.8316562,1587.3,1587.2,20.10340833]
[1744290560633,4.8316562,1587.3,1587.2,25.10340833]
[1744290560832,0.00944167,1587.4,1587.3,1.26073]
[1744290561636,1.26073,1587.3,1587.2,15.63479833]